Workbook

Sheet Instructions
A1: Instructions for Completing BAtB Equipment Grant template for Multi-Sites
A2: This template is to assist sponsors to organize their claims with multiple sites and invoices which will provide for a more accurate claim.
A4: EXAMPLE AND EXAMPLE TOTAL TAB
A5: Please review this tab as a guide when entering information. Do not enter your invoice information on this spreadsheet.
A7: BLANK TAB
A8: 1. Name of sites columns: Enter the name of your sites shown on the agreement. If you need more columns, you can press Ctrl+Shift+U.
A9: 2. Invoice Information: Enter information in Columns A, B, C, and D. Please note: For column "D" you would enter the name of the equipment. If you have an invoice for multiple pieces of equipment. You will need to complete multiple rows for the invoice in order to enter each piece of equipment.
A10: 3. Enter the amount for each equipment that applies for each site. If you have one piece of equipment, you can distribute the cost for multiple sites.
A12: TOTALS TAB
A13: 1. This sheet will autopopulate with the information entered from the blank form tab.
A14: 2. If you have more than three sites, you will need to manually enter the amount allocated in Row 3
A15: 3. Remaining amount (Row 4) will show what you have remaining for the claim for each site. If the amount is in red this means that you are over and will need to adjust your claim form to not go over the alllocated amount.

Sheet Example
A1: Vendor | B1: Invoice # | C1: Invoice Date | D1: Equipment Item | E1: NAME OF SITES (For additional Columns press Ctrl+Shift+U) | AD1: CNP USE ONLY
E2: Washington | F2: Lincoln | G2: Cesar Chavez | H2: Clark | I2: Grant | J2: Franklin | K2: Chief Joseph | L2: Jefferson | M2: Roosevelt | N2: Bush | O2: Lee | P2: Martin Luther King | AD2: TOTAL | AE2: Invoice Amount | AF2: Date ODE Approved | AG2: Date Processed EGMS | AH2: Comments
A3: Bargreen | B3: 1001 | C3: 2024-06-01 | D3: Can opener | E3: 31.56 | F3: 31.56 | G3: 31.56 | H3: 31.56 | I3: 31.56 | J3: 31.56 | AD3: =SUM(E3:AC3) -> 189.36 | AE3: 1971.6 | AF3: 2024-06-28 | AG3: 2024-07-02
A4: Bargreen | B4: 1001 | C4: 2024-06-01 | D4: Paring knife | E4: 5.91 | F4: 5.91 | G4: 5.91 | H4: 5.91 | AD4: 23.64 | AE4: 1971.6 | AF4: 2024-06-28 | AG4: 2024-07-02
A5: Bargreen | B5: 1001 | C5: 2024-06-01 | D5: Market Trays | E5: 293.1 | F5: 293.1 | G5: 293.1 | H5: 293.1 | I5: 293.1 | J5: 293.1 | AD5: 1758.6 | AE5: 1971.6 | AF5: 2024-06-28 | AG5: 2024-07-02
A6: Amazon | B6: 888 | C6: 2024-06-04 | D6: Small wares | E6: 643.33 | F6: 650.43 | G6: 684.03 | H6: 684.03 | I6: 727.38 | J6: 651.83 | AD6: 4041.03 | AE6: =SUM(F6:K6) -> 3397.7 | AF6: 2024-06-28 | AG6: 2024-07-02
A7: Webstore | B7: 999 | C7: 2024-06-15 | D7: Immerson Hand Mixer | E7: 78.33 | F7: 78.33 | G7: 143.33 | H7: 143.33 | I7: 143.33 | J7: 78.33 | AD7: 664.98 | AE7: 4000 | AF7: 2024-06-28 | AG7: 2024-07-02
A8: Webstore | B8: 999 | C8: 2024-06-15 | D8: Paring knife | E8: 5.91 | F8: 5.91 | G8: 5.91 | H8: 5.91 | AD8: 23.64 | AE8: 4000 | AF8: 2024-06-28 | AG8: 2024-07-02
A9: Webstore | B9: 999 | C9: 2024-06-15 | D9: Market Trays | E9: 293.1 | F9: 293.1 | G9: 293.1 | H9: 293.1 | I9: 293.1 | J9: 293.1 | AD9: 1758.6 | AE9: 4000 | AF9: 2024-06-28 | AG9: 2024-07-02
A10: Webstore | B10: 999 | C10: 2024-06-15 | D10: Salad Bar Legs | H10: 670 | AD10: 670 | AE10: 4000 | AF10: 2024-06-28 | AG10: 2024-07-02
A11: Webstaraunt | B11: 1000 | C11: 2024-06-20 | D11: Breakfast Cart | H11: 1598 | AD11: 1598 | AE11: 1598 | AH11: Over claim amount - sent back for corrections
AD13: =SUM(E13:AC13) -> 0
AD14: 0
AD15: 0
AD16: 0
AD17: 0
AD18: 0
AD19: 0
AD20: 0
AD21: 0
AD22: 0

Sheet Example Totals
A1: SUMMARY OF TOTALS FROM 'EXAMPLE' FORM
A2: SITES (Populated sites from 'Example' form) | B2: =Example!E2 -> Washington | C2: =Example!F2 -> Lincoln | D2: =Example!G2 -> Cesar Chavez | E2: =Example!H2 -> Clark | F2: =Example!I2 -> Grant | G2: =Example!J2 -> Franklin | H2: =Example!K2 -> Chief Joseph | I2: =Example!L2 -> Jefferson | J2: =Example!M2 -> Roosevelt | K2: =Example!N2 -> Bush | L2: =Example!O2 -> Lee | M2: =Example!P2 -> Martin Luther King | N2: =Example!Q2 -> 0 | O2: ='Blank Form'!R2 -> 0 | P2: ='Blank Form'!S2 -> 0 | Q2: ='Blank Form'!T2 -> 0 | R2: ='Blank Form'!U2 -> 0 | S2: ='Blank Form'!V2 -> 0 | T2: ='Blank Form'!W2 -> 0 | U2: ='Blank Form'!X2 -> 0 | V2: ='Blank Form'!Y2 -> 0 | W2: ='Blank Form'!Z2 -> 0 | X2: ='Blank Form'!AA2 -> 0 | Y2: ='Blank Form'!AB2 -> 0 | Z2: Grand Total
A3: TOTAL (Populated site totals from 'Example' tab) | B3: =SUM(Example!E3:E50) -> 1351.24 | C3: =SUM(Example!F3:F50) -> 1358.34 | D3: =SUM(Example!G3:G50) -> 1456.94 | E3: =SUM(Example!H3:H50) -> 3724.94 | F3: =SUM(Example!I3:I50) -> 1488.47 | G3: =SUM(Example!J3:J50) -> 1347.92 | H3: =SUM(Example!K3:K50) -> 0 | I3: =SUM(Example!L3:L50) -> 0 | J3: =SUM(Example!M3:M50) -> 0 | K3: =SUM(Example!N3:N50) -> 0 | L3: =SUM(Example!O3:O50) -> 0 | M3: =SUM(Example!P3:P50) -> 0 | N3: =SUM(Example!Q3:Q50) -> 0 | O3: =SUM('Blank Form'!R3:R50) -> 0 | P3: =SUM('Blank Form'!S3:S50) -> 0 | Q3: =SUM('Blank Form'!T3:T50) -> 0 | R3: =SUM('Blank Form'!U3:U50) -> 0 | S3: =SUM('Blank Form'!V3:V50) -> 0 | T3: =SUM('Blank Form'!W3:W50) -> 0 | U3: =SUM('Blank Form'!X3:X50) -> 0 | V3: =SUM('Blank Form'!Y3:Y50) -> 0 | W3: =SUM('Blank Form'!Z3:Z50) -> 0 | X3: =SUM('Blank Form'!AA3:AA50) -> 0 | Y3: =SUM('Blank Form'!AB3:AB50) -> 0 | Z3: =SUM(B3:Y3) -> 10727.85
A4: AMOUNT ALLOCATED FOR SY 24-25 | B4: 3241.7 | C4: 3241.7 | D4: 3241.7 | E4: 3241.7 | F4: 3241.7 | G4: 3241.7
A5: REMAINING AMOUNT AVAILABLE | B5: =B4-B3 -> 1890.46 | C5: =C4-C3 -> 1883.36 | D5: 1784.76 | E5: -483.24 | F5: 1753.23 | G5: 1893.78 | H5: 0 | I5: 0 | J5: 0 | K5: 0 | L5: 0 | M5: 0 | N5: 0 | O5: 0 | P5: 0 | Q5: 0 | R5: 0 | S5: 0 | T5: 0 | U5: 0 | V5: 0 | W5: 0 | X5: 0 | Y5: 0 | Z5: =SUM(B5:Y5) -> 8722.35
A8: ='Blank Form'!B6 -> 0 | B8: ='Blank Form'!AD6 -> 0
A9: ='Blank Form'!B7 -> 0 | B9: ='Blank Form'!AD7 -> 0
A10: ='Blank Form'!B8 -> 0 | B10: ='Blank Form'!AD8 -> 0
A11: ='Blank Form'!B9 -> 0 | B11: ='Blank Form'!AD9 -> 0
A12: ='Blank Form'!B10 -> 0 | B12: ='Blank Form'!AD10 -> 0
A13: ='Blank Form'!B11 -> 0 | B13: ='Blank Form'!AD11 -> 0
A14: ='Blank Form'!B12 -> 0 | B14: ='Blank Form'!AD12 -> 0
A15: ='Blank Form'!B13 -> 0 | B15: ='Blank Form'!AD13 -> 0
A16: ='Blank Form'!B14 -> 0 | B16: ='Blank Form'!AD14 -> 0
A17: ='Blank Form'!B15 -> 0 | B17: ='Blank Form'!AD15 -> 0
A18: ='Blank Form'!B16 -> 0 | B18: ='Blank Form'!AD16 -> 0
A19: ='Blank Form'!B17 -> 0 | B19: ='Blank Form'!AD17 -> 0
A20: ='Blank Form'!B18 -> 0 | B20: ='Blank Form'!AD18 -> 0
A21: ='Blank Form'!B19 -> 0 | B21: ='Blank Form'!AD19 -> 0
A22: ='Blank Form'!B20 -> 0 | B22: ='Blank Form'!AD20 -> 0
A23: ='Blank Form'!B21 -> 0 | B23: ='Blank Form'!AD21 -> 0
A24: ='Blank Form'!B22 -> 0 | B24: ='Blank Form'!AD22 -> 0
A25: ='Blank Form'!B23 -> 0 | B25: ='Blank Form'!AD23 -> 0
A26: ='Blank Form'!B24 -> 0 | B26: ='Blank Form'!AD24 -> 0
A27: ='Blank Form'!B25 -> 0 | B27: ='Blank Form'!AD25 -> 0
A28: ='Blank Form'!B26 -> 0 | B28: ='Blank Form'!AD26 -> 0
A29: ='Blank Form'!B27 -> 0 | B29: ='Blank Form'!AD27 -> 0
A30: ='Blank Form'!B28 -> 0 | B30: ='Blank Form'!AD28 -> 0
A31: ='Blank Form'!B29 -> 0 | B31: ='Blank Form'!AD29 -> 0
A32: ='Blank Form'!B30 -> 0 | B32: ='Blank Form'!AD30 -> 0
A33: ='Blank Form'!B31 -> 0 | B33: ='Blank Form'!AD31 -> 0
A34: ='Blank Form'!B32 -> 0 | B34: ='Blank Form'!AD32 -> 0
A35: ='Blank Form'!B33 -> 0 | B35: ='Blank Form'!AD33 -> 0
A36: ='Blank Form'!B34 -> 0 | B36: ='Blank Form'!AD34 -> 0
A37: ='Blank Form'!B35 -> 0 | B37: ='Blank Form'!AD35 -> 0
A38: ='Blank Form'!B36 -> 0 | B38: ='Blank Form'!AD36 -> 0
A39: ='Blank Form'!B37 -> 0 | B39: ='Blank Form'!AD37 -> 0
A40: ='Blank Form'!B38 -> 0 | B40: ='Blank Form'!AD38 -> 0
A41: ='Blank Form'!B39 -> 0 | B41: ='Blank Form'!AD39 -> 0
A42: ='Blank Form'!B40 -> 0 | B42: ='Blank Form'!AD40 -> 0
A43: ='Blank Form'!B41 -> 0 | B43: ='Blank Form'!AD41 -> 0
A44: ='Blank Form'!B42 -> 0 | B44: ='Blank Form'!AD42 -> 0
A45: ='Blank Form'!B43 -> 0 | B45: ='Blank Form'!AD43 -> 0
A46: ='Blank Form'!B44 -> 0 | B46: ='Blank Form'!AD44 -> 0
A47: ='Blank Form'!B45 -> 0 | B47: ='Blank Form'!AD45 -> 0
A48: ='Blank Form'!B46 -> 0 | B48: ='Blank Form'!AD46 -> 0
A49: ='Blank Form'!B47 -> 0 | B49: ='Blank Form'!AD47 -> 0
A50: ='Blank Form'!B48 -> 0 | B50: ='Blank Form'!AD48 -> 0
A51: ='Blank Form'!B49 -> 0 | B51: ='Blank Form'!AD49 -> 0
A52: ='Blank Form'!B50 -> 0 | B52: ='Blank Form'!AD50 -> 0
A53: ='Blank Form'!B51 -> 0 | B53: ='Blank Form'!AD51 -> 0
A54: ='Blank Form'!B52 -> 0 | B54: ='Blank Form'!AD52 -> 0
A55: ='Blank Form'!B53 -> 0 | B55: ='Blank Form'!AD53 -> 0
A56: ='Blank Form'!B54 -> 0 | B56: ='Blank Form'!AD54 -> 0
A57: ='Blank Form'!B55 -> 0 | B57: ='Blank Form'!AD55 -> 0
A58: ='Blank Form'!B56 -> 0 | B58: ='Blank Form'!AD56 -> 0
A59: ='Blank Form'!B57 -> 0 | B59: ='Blank Form'!AD57 -> 0
A60: ='Blank Form'!B58 -> 0 | B60: ='Blank Form'!AD58 -> 0
A61: ='Blank Form'!B59 -> 0 | B61: ='Blank Form'!AD59 -> 0
A62: ='Blank Form'!B60 -> 0 | B62: ='Blank Form'!AD60 -> 0
A63: ='Blank Form'!B61 -> 0 | B63: ='Blank Form'!AD61 -> 0
A64: ='Blank Form'!B62 -> 0 | B64: ='Blank Form'!AD62 -> 0
A65: ='Blank Form'!B63 -> 0 | B65: ='Blank Form'!AD63 -> 0
A66: ='Blank Form'!B64 -> 0 | B66: ='Blank Form'!AD64 -> 0
A67: ='Blank Form'!B65 -> 0 | B67: ='Blank Form'!AD65 -> 0
A68: ='Blank Form'!B66 -> 0 | B68: ='Blank Form'!AD66 -> 0
A69: ='Blank Form'!B67 -> 0 | B69: ='Blank Form'!AD67 -> 0
A70: ='Blank Form'!B68 -> 0 | B70: ='Blank Form'!AD68 -> 0
A71: ='Blank Form'!B69 -> 0 | B71: ='Blank Form'!AD69 -> 0
A72: ='Blank Form'!B70 -> 0 | B72: ='Blank Form'!AD70 -> 0
A73: ='Blank Form'!B71 -> 0 | B73: ='Blank Form'!AD71 -> 0
A74: ='Blank Form'!B72 -> 0 | B74: ='Blank Form'!AD72 -> 0
A75: ='Blank Form'!B73 -> 0 | B75: ='Blank Form'!AD73 -> 0
A76: ='Blank Form'!B74 -> 0 | B76: ='Blank Form'!AD74 -> 0
A77: ='Blank Form'!B75 -> 0 | B77: ='Blank Form'!AD75 -> 0
A78: ='Blank Form'!B76 -> 0 | B78: ='Blank Form'!AD76 -> 0
A79: ='Blank Form'!B77 -> 0 | B79: ='Blank Form'!AD77 -> 0
A80: ='Blank Form'!B78 -> 0 | B80: ='Blank Form'!AD78 -> 0
A81: ='Blank Form'!B79 -> 0 | B81: ='Blank Form'!AD79 -> 0
A82: ='Blank Form'!B80 -> 0 | B82: ='Blank Form'!AD80 -> 0
A83: ='Blank Form'!B81 -> 0 | B83: ='Blank Form'!AD81 -> 0
A84: ='Blank Form'!B82 -> 0 | B84: ='Blank Form'!AD82 -> 0
A85: ='Blank Form'!B83 -> 0 | B85: ='Blank Form'!AD83 -> 0
A86: ='Blank Form'!B84 -> 0 | B86: ='Blank Form'!AD84 -> 0
A87: ='Blank Form'!B85 -> 0 | B87: ='Blank Form'!AD85 -> 0
A88: ='Blank Form'!B86 -> 0 | B88: ='Blank Form'!AD86 -> 0
A89: ='Blank Form'!B87 -> 0 | B89: ='Blank Form'!AD87 -> 0
A90: ='Blank Form'!B88 -> 0 | B90: ='Blank Form'!AD88 -> 0
A91: ='Blank Form'!B89 -> 0 | B91: ='Blank Form'!AD89 -> 0
A92: ='Blank Form'!B90 -> 0 | B92: ='Blank Form'!AD90 -> 0
A93: ='Blank Form'!B91 -> 0 | B93: ='Blank Form'!AD91 -> 0
A94: ='Blank Form'!B92 -> 0 | B94: ='Blank Form'!AD92 -> 0
A95: ='Blank Form'!B93 -> 0 | B95: ='Blank Form'!AD93 -> 0
A96: ='Blank Form'!B94 -> 0 | B96: ='Blank Form'!AD94 -> 0
A97: ='Blank Form'!B95 -> 0 | B97: ='Blank Form'!AD95 -> 0

Sheet Blank Form
A1: Vendor | B1: Invoice # | C1: Invoice Date | D1: Equipment Item | E1: ENTER THE NAME OF YOUR SITES FROM THE AGREEMENT IN COLUMNS BELOW (For additional Columns press Ctrl+Shift+U) | AD1: CNP USE ONLY
AD2: TOTAL | AE2: Invoice Amount | AF2: Date ODE Approved | AG2: Date Processed EGMS | AH2: Comments
AD3: =SUM(E3:AC3) -> 0
AD4: =SUM(E4:AC4) -> 0
AD5: 0
AD6: 0
AD7: 0
AD8: 0
AD9: 0
AD10: 0
AD11: 0
AD12: 0
AD13: 0
AD14: 0
AD15: 0
AD16: 0
AD17: 0
AD18: 0
AD19: 0
AD20: 0
AD21: 0
AD22: 0
AD23: 0
AD24: 0
AD25: 0
AD26: 0
AD27: 0
AD28: 0
AD29: 0
AD30: 0
AD31: 0
AD32: 0
AD33: 0
AD34: 0
AD35: 0
AD36: 0
AD37: 0
AD38: 0
AD39: 0
AD40: 0
AD41: 0
AD42: 0
AD43: 0
AD44: 0
AD45: 0
AD46: 0
AD47: 0
AD48: 0
AD49: 0
AD50: 0
AD51: 0
AD52: 0
AD53: 0
AD54: 0
AD55: 0
AD56: 0
AD57: 0
AD58: 0
AD59: 0
AD60: 0

Sheet Blank Form Totals
A1: SUMMARY OF TOTALS FROM 'BLANK' FORM
A2: SITES (Will populate sites listed on 'blank' form) | B2: ='Blank Form'!E2 -> 0 | C2: ='Blank Form'!F2 -> 0 | D2: ='Blank Form'!G2 -> 0 | E2: ='Blank Form'!H2 -> 0 | F2: ='Blank Form'!I2 -> 0 | G2: ='Blank Form'!J2 -> 0 | H2: ='Blank Form'!K2 -> 0 | I2: ='Blank Form'!L2 -> 0 | J2: ='Blank Form'!M2 -> 0 | K2: ='Blank Form'!N2 -> 0 | L2: ='Blank Form'!O2 -> 0 | M2: ='Blank Form'!P2 -> 0 | N2: ='Blank Form'!Q2 -> 0 | O2: ='Blank Form'!R2 -> 0 | P2: ='Blank Form'!S2 -> 0 | Q2: ='Blank Form'!T2 -> 0 | R2: ='Blank Form'!U2 -> 0 | S2: ='Blank Form'!V2 -> 0 | T2: ='Blank Form'!W2 -> 0 | U2: ='Blank Form'!X2 -> 0 | V2: ='Blank Form'!Y2 -> 0 | W2: ='Blank Form'!Z2 -> 0 | X2: ='Blank Form'!AA2 -> 0 | Y2: ='Blank Form'!AB2 -> 0 | Z2: Grand Total
A3: TOTAL (Will populate site totals from 'Blank' tab) | B3: =SUM('Blank Form'!E3:E50) -> 0 | C3: =SUM('Blank Form'!F3:F50) -> 0 | D3: =SUM('Blank Form'!G3:G50) -> 0 | E3: =SUM('Blank Form'!H3:H50) -> 0 | F3: =SUM('Blank Form'!I3:I50) -> 0 | G3: =SUM('Blank Form'!J3:J50) -> 0 | H3: =SUM('Blank Form'!K3:K50) -> 0 | I3: =SUM('Blank Form'!L3:L50) -> 0 | J3: =SUM('Blank Form'!M3:M50) -> 0 | K3: =SUM('Blank Form'!N3:N50) -> 0 | L3: =SUM('Blank Form'!O3:O50) -> 0 | M3: =SUM('Blank Form'!P3:P50) -> 0 | N3: =SUM('Blank Form'!Q3:Q50) -> 0 | O3: =SUM('Blank Form'!R3:R50) -> 0 | P3: =SUM('Blank Form'!S3:S50) -> 0 | Q3: =SUM('Blank Form'!T3:T50) -> 0 | R3: =SUM('Blank Form'!U3:U50) -> 0 | S3: =SUM('Blank Form'!V3:V50) -> 0 | T3: =SUM('Blank Form'!W3:W50) -> 0 | U3: =SUM('Blank Form'!X3:X50) -> 0 | V3: =SUM('Blank Form'!Y3:Y50) -> 0 | W3: =SUM('Blank Form'!Z3:Z50) -> 0 | X3: =SUM('Blank Form'!AA3:AA50) -> 0 | Y3: =SUM('Blank Form'!AB3:AB50) -> 0 | Z3: =SUM(B3:Y3) -> 0
A4: AMOUNT ALLOCATED FOR SY 24-25 | B4: 3241.7 | C4: 3241.7 | D4: 3241.7
A5: REMAINING AMOUNT AVAILABLE | B5: =B4-B3 -> 3241.7 | C5: =C4-C3 -> 3241.7 | D5: 3241.7 | E5: 0 | F5: 0 | G5: 0 | H5: 0 | I5: 0 | J5: 0 | K5: 0 | L5: 0 | M5: 0 | N5: 0 | O5: 0 | P5: 0 | Q5: 0 | R5: 0 | S5: 0 | T5: 0 | U5: 0 | V5: 0 | W5: 0 | X5: 0 | Y5: 0 | Z5: =SUM(B5:Y5) -> 9725.1
A8: ='Blank Form'!B6 -> 0 | B8: ='Blank Form'!AD6 -> 0
A9: ='Blank Form'!B7 -> 0 | B9: ='Blank Form'!AD7 -> 0
A10: ='Blank Form'!B8 -> 0 | B10: ='Blank Form'!AD8 -> 0
A11: ='Blank Form'!B9 -> 0 | B11: ='Blank Form'!AD9 -> 0
A12: ='Blank Form'!B10 -> 0 | B12: ='Blank Form'!AD10 -> 0
A13: ='Blank Form'!B11 -> 0 | B13: ='Blank Form'!AD11 -> 0
A14: ='Blank Form'!B12 -> 0 | B14: ='Blank Form'!AD12 -> 0
A15: ='Blank Form'!B13 -> 0 | B15: ='Blank Form'!AD13 -> 0
A16: ='Blank Form'!B14 -> 0 | B16: ='Blank Form'!AD14 -> 0
A17: ='Blank Form'!B15 -> 0 | B17: ='Blank Form'!AD15 -> 0
A18: ='Blank Form'!B16 -> 0 | B18: ='Blank Form'!AD16 -> 0
A19: ='Blank Form'!B17 -> 0 | B19: ='Blank Form'!AD17 -> 0
A20: ='Blank Form'!B18 -> 0 | B20: ='Blank Form'!AD18 -> 0
A21: ='Blank Form'!B19 -> 0 | B21: ='Blank Form'!AD19 -> 0
A22: ='Blank Form'!B20 -> 0 | B22: ='Blank Form'!AD20 -> 0
A23: ='Blank Form'!B21 -> 0 | B23: ='Blank Form'!AD21 -> 0
A24: ='Blank Form'!B22 -> 0 | B24: ='Blank Form'!AD22 -> 0
A25: ='Blank Form'!B23 -> 0 | B25: ='Blank Form'!AD23 -> 0
A26: ='Blank Form'!B24 -> 0 | B26: ='Blank Form'!AD24 -> 0
A27: ='Blank Form'!B25 -> 0 | B27: ='Blank Form'!AD25 -> 0
A28: ='Blank Form'!B26 -> 0 | B28: ='Blank Form'!AD26 -> 0
A29: ='Blank Form'!B27 -> 0 | B29: ='Blank Form'!AD27 -> 0
A30: ='Blank Form'!B28 -> 0 | B30: ='Blank Form'!AD28 -> 0
A31: ='Blank Form'!B29 -> 0 | B31: ='Blank Form'!AD29 -> 0
A32: ='Blank Form'!B30 -> 0 | B32: ='Blank Form'!AD30 -> 0
A33: ='Blank Form'!B31 -> 0 | B33: ='Blank Form'!AD31 -> 0
A34: ='Blank Form'!B32 -> 0 | B34: ='Blank Form'!AD32 -> 0
A35: ='Blank Form'!B33 -> 0 | B35: ='Blank Form'!AD33 -> 0
A36: ='Blank Form'!B34 -> 0 | B36: ='Blank Form'!AD34 -> 0
A37: ='Blank Form'!B35 -> 0 | B37: ='Blank Form'!AD35 -> 0
A38: ='Blank Form'!B36 -> 0 | B38: ='Blank Form'!AD36 -> 0
A39: ='Blank Form'!B37 -> 0 | B39: ='Blank Form'!AD37 -> 0
A40: ='Blank Form'!B38 -> 0 | B40: ='Blank Form'!AD38 -> 0
A41: ='Blank Form'!B39 -> 0 | B41: ='Blank Form'!AD39 -> 0
A42: ='Blank Form'!B40 -> 0 | B42: ='Blank Form'!AD40 -> 0
A43: ='Blank Form'!B41 -> 0 | B43: ='Blank Form'!AD41 -> 0
A44: ='Blank Form'!B42 -> 0 | B44: ='Blank Form'!AD42 -> 0
A45: ='Blank Form'!B43 -> 0 | B45: ='Blank Form'!AD43 -> 0
A46: ='Blank Form'!B44 -> 0 | B46: ='Blank Form'!AD44 -> 0
A47: ='Blank Form'!B45 -> 0 | B47: ='Blank Form'!AD45 -> 0
A48: ='Blank Form'!B46 -> 0 | B48: ='Blank Form'!AD46 -> 0
A49: ='Blank Form'!B47 -> 0 | B49: ='Blank Form'!AD47 -> 0
A50: ='Blank Form'!B48 -> 0 | B50: ='Blank Form'!AD48 -> 0
A51: ='Blank Form'!B49 -> 0 | B51: ='Blank Form'!AD49 -> 0
A52: ='Blank Form'!B50 -> 0 | B52: ='Blank Form'!AD50 -> 0
A53: ='Blank Form'!B51 -> 0 | B53: ='Blank Form'!AD51 -> 0
A54: ='Blank Form'!B52 -> 0 | B54: ='Blank Form'!AD52 -> 0
A55: ='Blank Form'!B53 -> 0 | B55: ='Blank Form'!AD53 -> 0
A56: ='Blank Form'!B54 -> 0 | B56: ='Blank Form'!AD54 -> 0
A57: ='Blank Form'!B55 -> 0 | B57: ='Blank Form'!AD55 -> 0
A58: ='Blank Form'!B56 -> 0 | B58: ='Blank Form'!AD56 -> 0
A59: ='Blank Form'!B57 -> 0 | B59: ='Blank Form'!AD57 -> 0
A60: ='Blank Form'!B58 -> 0 | B60: ='Blank Form'!AD58 -> 0
A61: ='Blank Form'!B59 -> 0 | B61: ='Blank Form'!AD59 -> 0
A62: ='Blank Form'!B60 -> 0 | B62: ='Blank Form'!AD60 -> 0
A63: ='Blank Form'!B61 -> 0 | B63: ='Blank Form'!AD61 -> 0
A64: ='Blank Form'!B62 -> 0 | B64: ='Blank Form'!AD62 -> 0
A65: ='Blank Form'!B63 -> 0 | B65: ='Blank Form'!AD63 -> 0
A66: ='Blank Form'!B64 -> 0 | B66: ='Blank Form'!AD64 -> 0
A67: ='Blank Form'!B65 -> 0 | B67: ='Blank Form'!AD65 -> 0
A68: ='Blank Form'!B66 -> 0 | B68: ='Blank Form'!AD66 -> 0
A69: ='Blank Form'!B67 -> 0 | B69: ='Blank Form'!AD67 -> 0
A70: ='Blank Form'!B68 -> 0 | B70: ='Blank Form'!AD68 -> 0
A71: ='Blank Form'!B69 -> 0 | B71: ='Blank Form'!AD69 -> 0
A72: ='Blank Form'!B70 -> 0 | B72: ='Blank Form'!AD70 -> 0
A73: ='Blank Form'!B71 -> 0 | B73: ='Blank Form'!AD71 -> 0
A74: ='Blank Form'!B72 -> 0 | B74: ='Blank Form'!AD72 -> 0
A75: ='Blank Form'!B73 -> 0 | B75: ='Blank Form'!AD73 -> 0
A76: ='Blank Form'!B74 -> 0 | B76: ='Blank Form'!AD74 -> 0
A77: ='Blank Form'!B75 -> 0 | B77: ='Blank Form'!AD75 -> 0
A78: ='Blank Form'!B76 -> 0 | B78: ='Blank Form'!AD76 -> 0
A79: ='Blank Form'!B77 -> 0 | B79: ='Blank Form'!AD77 -> 0
A80: ='Blank Form'!B78 -> 0 | B80: ='Blank Form'!AD78 -> 0
A81: ='Blank Form'!B79 -> 0 | B81: ='Blank Form'!AD79 -> 0
A82: ='Blank Form'!B80 -> 0 | B82: ='Blank Form'!AD80 -> 0
A83: ='Blank Form'!B81 -> 0 | B83: ='Blank Form'!AD81 -> 0
A84: ='Blank Form'!B82 -> 0 | B84: ='Blank Form'!AD82 -> 0
A85: ='Blank Form'!B83 -> 0 | B85: ='Blank Form'!AD83 -> 0
A86: ='Blank Form'!B84 -> 0 | B86: ='Blank Form'!AD84 -> 0
A87: ='Blank Form'!B85 -> 0 | B87: ='Blank Form'!AD85 -> 0
A88: ='Blank Form'!B86 -> 0 | B88: ='Blank Form'!AD86 -> 0
A89: ='Blank Form'!B87 -> 0 | B89: ='Blank Form'!AD87 -> 0
A90: ='Blank Form'!B88 -> 0 | B90: ='Blank Form'!AD88 -> 0
A91: ='Blank Form'!B89 -> 0 | B91: ='Blank Form'!AD89 -> 0
A92: ='Blank Form'!B90 -> 0 | B92: ='Blank Form'!AD90 -> 0
A93: ='Blank Form'!B91 -> 0 | B93: ='Blank Form'!AD91 -> 0
A94: ='Blank Form'!B92 -> 0 | B94: ='Blank Form'!AD92 -> 0
A95: ='Blank Form'!B93 -> 0 | B95: ='Blank Form'!AD93 -> 0
A96: ='Blank Form'!B94 -> 0 | B96: ='Blank Form'!AD94 -> 0
A97: ='Blank Form'!B95 -> 0 | B97: ='Blank Form'!AD95 -> 0
